Cogmind - Beta 12 @@@ ROGUE MODE // 2023.04.30 @ 22:39:15 Player: Exp. Geonium Core Result: Destroyed self with Mini Smartbomb Launcher Performance ------------- Evolutions (3) 1500 Regions Visited (10) 2000 Robots Destroyed (65) 325 Value Destroyed (3313) 3313 Prototype IDs (34) 680 Alien Tech Used (0) 0 Bonus (2876) 2876 TOTAL SCORE: 10694 Bonus ------- High Alert Combat Kills 134 Follower Combat Kills 240 Entered Garrisons 400 Used RIF Installer 2000 Aligned with FarCom 300 Friendly Fire -198 Cogmind --------- Core Integrity 0/700 Matter 225/300 Energy 350/350 System Corruption 0% Temperature Cool (0) Movement Treading (160) Location -7/Lower Caves Parts ------- > --- POWER (1) -------- Cooled Fission Core > --- PROPULSION (2) --- Improved Heavy Treads > --- UTILITY (8) ------ Advanced Cooling System High-capacity Storage Unit Improved Sensor Array Improved Light Armor Plating Relay Coupler [Grunt] (5) System Restoration Module Advanced System Restoration Module Tractor Beam > --- WEAPON (2) ------- Mini Smartbomb Launcher Remote Datajack > --- INVENTORY (20) --- Fusion Reactor Wheel Wheel Medium Matter Pod (100) Relay Coupler [Grunt] (26) Relay Coupler [Sentry] (18) Force Rifle Force Rifle Force Rifle Cooled Proton Cannon Guided Plasma Cannon Antimatter Cannon Mini Grenade Launcher Mini Smartbomb Launcher Mini Smartbomb Launcher Mini Smartbomb Launcher Mini Smartbomb Launcher Improved Remote Datajack Impact Mace Peak State ------------ > --- POWER ------------ Cooled Fission Core > --- PROPULSION ------- Improved Heavy Treads > --- UTILITY ---------- Advanced Cooling System High-capacity Storage Unit Improved Sensor Array Improved Light Armor Plating Relay Coupler [Grunt] System Restoration Module Advanced System Restoration Module Tractor Beam > --- WEAPON ----------- Force Rifle Guided Plasma Cannon > --- INVENTORY -------- Fusion Reactor Wheel Wheel Medium Matter Pod Relay Coupler [Grunt] Relay Coupler [Sentry] Force Rifle Force Rifle Cooled Proton Cannon Antimatter Cannon Mini Grenade Launcher Mini Smartbomb Launcher Mini Smartbomb Launcher Mini Smartbomb Launcher Mini Smartbomb Launcher Mini Smartbomb Launcher Remote Datajack Improved Remote Datajack Impact Mace [Rating: 71] Favorites ----------- Power Ion Engine Engine Ion Engine Power Core Cooled Fission Core Reactor Fusion Reactor Propulsion Light Treads Treads Light Treads Leg Aluminum Leg Wheel Wheel Utility High-capacity Storage Unit Device Improved Heat Sink Storage High-capacity Storage Unit Hackware Relay Coupler [Grunt] Protection Improved Propulsion Shielding Weapon Small Laser Energy Gun Small Laser Energy Cannon Advanced Plasma Cannon Ballistic Gun Light Assault Rifle Ballistic Cannon Antimatter Cannon Launcher Mini Grenade Launcher Special Weapon Improved Remote Datajack Impact Weapon Impact Mace Build | -11 -10 -10 -10 -9 -8 -8 -8 -8 -7 -7 ------- Run | Jun Mat Min Exi Min Mat Gar Mat Gar Fac Low Slots Evolved 6 | . . . . . 4 . . . 2 . Power . | . . . . . . . . . . . Propulsion . | . . . . . . . . . . . Utility 6 | . . . . . 4 . . . 2 . Weapon . | . . . . . . . . . . . Parts Attached 95 | . . 1 3 . 1 16 8 11 53 2 Power 8 | . . . . . . 1 1 . 6 . Engine 5 | . . . . . . 1 1 . 3 . Core 2 | . . . . . . . . . 2 . Reactor 1 | . . . . . . . . . 1 . Propulsion 15 | . . . 2 . 1 1 3 3 5 . Treads 7 | . . . 2 . . 1 2 1 1 . Leg 1 | . . . . . . . . . 1 . Wheel 7 | . . . . . 1 . 1 2 3 . Hover . | . . . . . . . . . . . Flight . | . . . . . . . . . . . Utility 33 | . . . 1 . . 7 1 3 21 . Device 14 | . . . . . . 3 . 2 9 . Storage 1 | . . . 1 . . . . . . . Processor . | . . . . . . . . . . . Hackware 9 | . . . . . . . . 1 8 . Protection 9 | . . . . . . 4 1 . 4 . Artifact . | . . . . . . . . . . . Weapon 39 | . . 1 . . . 7 3 5 21 2 Energy Gun 9 | . . 1 . . . 2 3 . 3 . Energy Cannon 11 | . . . . . . 2 . 2 7 . Ballistic Gun 4 | . . . . . . 1 . . 3 . Ballistic Cannon 1 | . . . . . . . . . 1 . Launcher 8 | . . . . . . 2 . 2 3 1 Special Weapon 5 | . . . . . . . . 1 3 1 Impact Weapon 1 | . . . . . . . . . 1 . Slashing Weapon . | . . . . . . . . . . . Piercing Weapon . | . . . . . . . . . . . Special Melee Weapon . | . . . . . . . . . . . Unidentified Prototypes 10 | . . . . . . . . . 10 . Parts Lost 34 | . . 2 . . . 7 2 5 18 . Power 5 | . . . . . . 1 1 . 3 . Propulsion 9 | . . 1 . . . 1 . 3 4 . Utility 13 | . . . . . . 4 . 2 7 . Weapon 7 | . . 1 . . . 1 1 . 4 . Highest Loss Streak 15 | . . 2 . . . 4 2 2 15 . To Critical Strikes . | . . . . . . . . . . . Average Slot Usage (%) 85 | . 85 78 81 100 63 79 92 94 83 92 Engine 7 | . 14 14 14 14 9 8 9 9 2 . Core 1 | . . . . . . . . . 3 7 Treads 8 | . . . 11 28 15 8 12 13 4 7 Leg 3 | . 28 23 8 . . . . . . . Wheel 4 | . . . . . 2 9 5 4 4 . Device 18 | . . . . . . 10 27 32 22 38 Storage 10 | . 14 14 18 28 18 10 9 9 7 7 Hackware 6 | . . . . . . . . 1 18 7 Protection 5 | . . . . . . 16 12 5 3 7 Energy Gun 8 | . 28 26 28 28 18 3 15 2 . . Energy Cannon 3 | . . . . . . 4 . 6 5 . Launcher 3 | . . . . . . 6 . 8 . 6 Special Weapon 1 | . . . . . . . . . 4 7 Naked Turns . | . . . . . . . . . . . Heaviest Build 80 | 13 13 13 52 52 52 68 67 67 80 73 Greatest Support 75 | 20 20 20 40 40 40 10 40 40 75 75 Greatest Overweight (x) 7 | . . 1 1 1 5 6 6 6 7 . Average Overweight (x) 3 | . . . . 1 2 5 4 3 4 . Largest Inventory Capacity 20 | . 8 8 20 20 20 20 20 20 20 20 Average Capacity 17 | . 8 8 11 20 20 20 20 20 20 20 Most Carried 20 | . 6 8 8 8 17 20 19 20 20 19 Average Carried 15 | . 6 6 7 7 11 17 18 19 18 19 Final Capacity 20 | 8 8 8 20 20 20 20 20 20 20 20 Final Carried 20 | 6 6 7 7 8 17 19 19 20 19 19 Class Distribution -------------------- 39% | Mutant 34% | Bothacker-Mutant 22% | Botlord-Mutant 3% | Scavenger-Mutant Dominant Class ---------------- Mutant | -10/Materials Mutant | -10/Mines Mutant | -10/Exiles Mutant | -9/Mines Mutant | -8/Materials Mutant | -8/Garrison Bothacker-Mutant | -8/Materials Bothacker-Mutant | -8/Garrison Botlord-Mutant | -7/Factory Scavenger-Mutant | -7/Lower Caves Resources | -11 -10 -10 -10 -9 -8 -8 -8 -8 -7 -7 ----------- Run | Jun Mat Min Exi Min Mat Gar Mat Gar Fac Low Matter Collected 1733 | 200 . 10 30 . . 172 57 429 750 85 Remotely 320 | . . . . . . . . . 235 85 Salvage Created 2070 | . 45 19 . 148 . 302 57 611 837 51 Parts 101 | . 2 . . 9 . 15 3 34 38 . Haulers Intercepted . | . . . . . . . . . . . Recyclers Shooed 4 | . . . . . . . . . 4 . Parts Field Recycled . | . . . . . . . . . . . Retrieved Matter . | . . . . . . . . . . . Parts Self-Destructed . | . . . . . . . . . . . Prevented . | . . . . . . . . . . . Kills | -11 -10 -10 -10 -9 -8 -8 -8 -8 -7 -7 ------- Run | Jun Mat Min Exi Min Mat Gar Mat Gar Fac Low Combat Hostiles Destroyed 56 | . 3 2 . 5 . 9 1 23 10 3 Guns 14 | . 3 2 . 5 . 3 1 . . . Cannons 12 | . . . . . . . . 7 5 . AOE 29 | . . . . . . 6 . 15 5 3 Classes Destroyed 16 | . 1 2 . 2 . 2 . 2 7 . Worker 1 | . . . . . . . . . 1 . Recycler 4 | . . . . . . . . . 4 . Mechanic 1 | . . . . . . . . . 1 . Operator 1 | . . . . . . . . . 1 . Watcher 2 | . . . . . . . . . 2 . Swarmer 11 | . 3 . . 3 . . . 4 . 1 Cutter 4 | . . . . . . . . 4 . . Grunt 24 | . . . . 1 . 6 . 12 3 2 Brawler 1 | . . . . . . 1 . . . . Duelist 1 | . . . . 1 . . . . . . Sentry 5 | . . . . . . 2 1 2 . . Demolisher 1 | . . 1 . . . . . . . . Specialist 1 | . . . . . . . . . 1 . Hunter 4 | . . . . . . . . . 4 . Programmer 4 | . . . . . . . . 2 2 . Assembled 1 | . . 1 . . . . . . . . Best Kill Streak 9 | . 2 1 . 3 . 4 1 9 8 3 Combat Bots Only 9 | . 2 1 . 3 . 4 1 9 5 2 Max Kills in Single Turn 6 | . 1 1 . 1 . 2 1 6 3 1 Gunslinging . | . . . . . . . . . . . Exploded 6 | . . . . . . 2 . 6 3 1 Melee . | . . . . . . . . . . . Uniques/NPCs Destroyed . | . . . . . . . . . . . Combat | -11 -10 -10 -10 -9 -8 -8 -8 -8 -7 -7 -------- Run | Jun Mat Min Exi Min Mat Gar Mat Gar Fac Low Damage Taken 5048 | . 162 294 . 289 . 869 131 640 2529 134 Core 1207 | . 57 75 . 104 . 166 . 104 640 61 Absorbed by Shields 155 | . . . . . . . . . 155 . Redirected to Shielding 306 | . . . . . . 240 45 21 . . Core Remaining (%) 51 | 100 . . . 5 . . . 50 . . Volleys Fired 195 | . 11 5 . 15 . 36 5 48 66 9 Largest 2 | . 2 2 . 2 . 2 2 2 2 1 Hottest 120 | . 80 80 . 80 . 120 80 120 120 80 Shots Fired 248 | . 22 6 . 30 . 51 6 57 67 9 Gun 105 | . 22 6 . 30 . 32 6 . 8 1 Cannon 65 | . . . . . . 4 . 36 25 . Launcher 43 | . . . . . . 15 . 20 3 5 Special 35 | . . . . . . . . 1 31 3 Kinetic 17 | . . . . . . 15 . . 2 . Thermal 142 | . 11 6 . 30 . 21 6 36 31 1 Explosive 43 | . . . . . . 15 . 20 3 5 Electromagnetic 11 | . 11 . . . . . . . . . Robot Hit Streak 19 | . 7 5 . 9 . 11 14 19 11 5 Robot Miss Streak 4 | . 2 1 . 4 . 3 . 1 4 . Penetration Max . | . . . . . . . . . . . Secondary Targets 5 | . 2 . . 1 . 2 . . . . Max Gunslinging Chain 1 | . 1 . . 1 . 1 . . . . Shots Hit Robots 146 | . 14 4 . 19 . 35 5 17 48 4 Core Hits 114 | . 3 2 . 8 . 25 3 37 27 9 Critical Kills 1 | . . . . . . . . 1 . . Critical Parts Destroyed 1 | . . . . . . . . . . 1 Critical Strikes 2 | . . . . . . . . 1 . 1 Meltdown 1 | . . . . . . . . 1 . . Destroy 1 | . . . . . . . . . . 1 Melee Attacks 2 | . . . . . . . . . 2 . Impact 2 | . . . . . . . . . 2 . Slashing . | . . . . . . . . . . . Piercing . | . . . . . . . . . . . Sneak Attacks . | . . . . . . . . . . . Combat Hostiles . | . . . . . . . . . . . Follow-up Attacks . | . . . . . . . . . . . Damage Inflicted 5444 | . 155 46 . 222 . 940 53 2028 1517 483 Guns 841 | . 155 46 . 222 . 260 52 . 81 25 Cannons 1535 | . . . . . . . . 630 905 . Explosions 3053 | . . . . . . 680 . 1398 517 458 Melee . | . . . . . . . . . . . Ramming 15 | . . . . . . . 1 . 14 . Kinetic 143 | . . . . . . 108 . . 35 . Thermal 2145 | . 67 46 . 222 . 152 52 630 951 25 Explosive 3053 | . . . . . . 680 . 1398 517 458 Electromagnetic 88 | . 88 . . . . . . . . . Impact . | . . . . . . . . . . . Slashing . | . . . . . . . . . . . Piercing . | . . . . . . . . . . . Highest Corruption 7 | . . . . . . . . . 7 . Average Corruption 3 | . . . . . . . . . 3 . Corruption Purged 8 | . . . . . . . . . 8 . Corruption Blocked . | . . . . . . . . . . . Effects 7 | . . . . . . . . . 7 . Message Errors 1 | . . . . . . . . . 1 . Energy Discharges 2 | . . . . . . . . . 2 . Parts Rejected 1 | . . . . . . . . . 1 . Data Loss (minor) 3 | . . . . . . . . . 3 . Overload Shots . | . . . . . . . . . . . Overflow Damage 264 | . . . . . . 6 . 96 74 88 Projectiles 92 | . . . . . . . . 18 74 . Explosions 172 | . . . . . . 6 . 78 . 88 Melee . | . . . . . . . . . . . Knockbacks . | . . . . . . . . . . . Impact . | . . . . . . . . . . . Kinetic . | . . . . . . . . . . . Secondary . | . . . . . . . . . . . Self-Inflicted Damage 551 | . . . . . . 228 . 260 37 26 Shots 22 | . . . . . . 6 . 13 2 1 Rammed 2 | . . . . . . . 1 . 1 . Targets Rammed 2 | . . . . . . . 1 . 1 . Kicked . | . . . . . . . . . . . Crushed . | . . . . . . . . . . . Highest Temperature 246 | . 198 18 . 186 . 82 . 104 246 8 Average Temperature 57 | . 101 12 . 76 . 21 . 33 61 8 Received Heat Transfer 681 | . . . . 30 . 297 72 171 48 63 Siege Activations . | . . . . . . . . . . . Robots Corrupted . | . . . . . . . . . . . Combat Hostiles . | . . . . . . . . . . . Parts Fried . | . . . . . . . . . . . Impact Corruptions . | . . . . . . . . . . . Robots Melted 1 | . . . . . . . . 1 . . Combat Hostiles 1 | . . . . . . . . 1 . . Parts Melted 18 | . 1 . . 1 . . 1 12 2 1 Heat Transferred 4246 | . 150 100 . 500 . 350 125 1060 1924 37 Parts Sabotaged . | . . . . . . . . . . . Parts Stolen . | . . . . . . . . . . . Parts Stripped . | . . . . . . . . . . . Power Chain Reactions . | . . . . . . . . . . . Missiles Intercepted . | . . . . . . . . . . . Alert | -11 -10 -10 -10 -9 -8 -8 -8 -8 -7 -7 ------- Run | Jun Mat Min Exi Min Mat Gar Mat Gar Fac Low Peak Influence 966 | . 70 32 . 135 82 315 193 966 506 . Initial 506 | . . 27 . . 52 53 153 125 506 . Average 294 | . 29 30 . 94 52 243 168 467 328 . Maximum Alert Level 3 | . . . . . . 1 . 3 2 . Low Security (%) 35 | . 100 100 . 100 100 30 100 24 5 . Level 1 41 | . . . . . . 69 . 22 70 . Level 2 16 | . . . . . . . . 29 23 . Level 3 6 | . . . . . . . . 23 . . Level 4 . | . . . . . . . . . . . Level 5 . | . . . . . . . . . . . High Security . | . . . . . . . . . . . Max Security . | . . . . . . . . . . . Squads Dispatched 6 | . . . . . . . 2 . 4 . Investigation 1 | . . . . . . . . . 1 . Extermination 1 | . . . . . . . . . 1 . Reinforcement 4 | . . . . . . . 2 . 2 . Assault . | . . . . . . . . . . . Garrison . | . . . . . . . . . . . Intercept . | . . . . . . . . . . . Searches Triggered . | . . . . . . . . . . . Construction Impeded . | . . . . . . . . . . . Haulers Reinforced . | . . . . . . . . . . . Active Scanning Responses . | . . . . . . . . . . . Cargo Convoy Interrupts 1 | . . . . . . . . . 1 . Stealth | -11 -10 -10 -10 -9 -8 -8 -8 -8 -7 -7 --------- Run | Jun Mat Min Exi Min Mat Gar Mat Gar Fac Low Distress Signals 6 | . . . . . 1 . . . 5 . Communications Jammed . | . . . . . . . . . . . Distress Signals . | . . . . . . . . . . . Times Spotted 89 | . 4 3 . 4 1 9 5 17 38 8 Peak Tracking Total 10 | . 3 2 . 2 5 5 4 4 10 5 Tactical Retreats 1 | . . . . . 1 . . . . . Traps | -11 -10 -10 -10 -9 -8 -8 -8 -8 -7 -7 ------- Run | Jun Mat Min Exi Min Mat Gar Mat Gar Fac Low Traps Triggered 13 | . . . . . . . . 8 5 . Indirectly . | . . . . . . . . . . . Trap Hack Attempts . | . . . . . . . . . . . Triggered . | . . . . . . . . . . . Disarmed . | . . . . . . . . . . . Reprogrammed . | . . . . . . . . . . . Reused . | . . . . . . . . . . . Traps Extracted . | . . . . . . . . . . . Installed . | . . . . . . . . . . . Triggered . | . . . . . . . . . . . Machines | -11 -10 -10 -10 -9 -8 -8 -8 -8 -7 -7 ---------- Run | Jun Mat Min Exi Min Mat Gar Mat Gar Fac Low Machines Disabled 12 | . . . . . . 3 . 7 1 1 Max in Single Turn 3 | . . . . . . 2 . 3 . 1 Garrison Access 3 | . . . . . . . . . 3 . Garrison Relay 5 | . . . . . . 1 . 4 . . Machines Repaired . | . . . . . . . . . . . Machines Sabotaged . | . . . . . . . . . . . Overloaded Fab Kills . | . . . . . . . . . . . Hacking | -11 -10 -10 -10 -9 -8 -8 -8 -8 -7 -7 --------- Run | Jun Mat Min Exi Min Mat Gar Mat Gar Fac Low Machines Accessed 13 | . . 1 2 . 1 1 1 1 6 . Terminals 6 | . . 1 . . . 1 . 1 3 . Fabricators . | . . . . . . . . . . . Repair Stations . | . . . . . . . . . . . Recycling Units . | . . . . . . . . . . . Scanalyzers . | . . . . . . . . . . . Garrison Access 5 | . . . . . 1 . 1 . 3 . Total Hacks 19 | . . 3 2 . 2 2 1 2 7 . Successful 10 | . . 1 2 . 1 1 1 . 4 . Failed 9 | . . 2 . . 1 1 . 2 3 . Catastrophic 1 | . . . . . . . . . 1 . Database Lockouts . | . . . . . . . . . . . Manual 4 | . . . 1 . . . . . 3 . Terminals 11 | . . 3 . . . 2 . 2 4 . Fabricators . | . . . . . . . . . . . Repair Stations . | . . . . . . . . . . . Recycling Units . | . . . . . . . . . . . Scanalyzers . | . . . . . . . . . . . Garrison Access 6 | . . . . . 2 . 1 . 3 . Terminal Hacks 5 | . . 1 2 . . 1 . . 1 . Record 1 | . . . 1 . . . . . . . Branch Access Points 1 | . . . . . . . . . 1 . Zone Layout 1 | . . 1 . . . . . . . . Garrison Registry 1 | . . . . . . 1 . . . . EX-Prototype ID Bank 1 | . . . 1 . . . . . . . Fabricator Hacks . | . . . . . . . . . . . Repair Station Hacks . | . . . . . . . . . . . Recycling Unit Hacks . | . . . . . . . . . . . Scanalyzer . | . . . . . . . . . . . Garrison Access Hacks 5 | . . . . . 1 . 1 . 3 . Unlock Access 2 | . . . . . 1 . 1 . . . Seal Access 3 | . . . . . . . . . 3 . Unauthorized Hacks . | . . . . . . . . . . . Terminals . | . . . . . . . . . . . Fabricators . | . . . . . . . . . . . Repair Stations . | . . . . . . . . . . . Recycling Units . | . . . . . . . . . . . Scanalyzers . | . . . . . . . . . . . Garrison Access . | . . . . . . . . . . . Data Cores Recovered 1 | . . . . . . . . . 1 . Used . | . . . . . . . . . . . Hacking Detections 6 | . . . . . 1 1 . 1 3 . Full Trace Events 1 | . . . . . . . . . 1 . Feedback Events 1 | . . . . . . . . . 1 . Corruption 1 | . . . . . . . . . 1 . Feedback Blocked . | . . . . . . . . . . . Robot Schematics Acquired . | . . . . . . . . . . . Robots Built . | . . . . . . . . . . . Authchips . | . . . . . . . . . . . Time . | . . . . . . . . . . . Total Robot Build Rating . | . . . . . . . . . . . Part Schematics Acquired . | . . . . . . . . . . . Parts Built . | . . . . . . . . . . . Authchips . | . . . . . . . . . . . Time . | . . . . . . . . . . . Total Part Build Rating . | . . . . . . . . . . . Parts Repaired . | . . . . . . . . . . . Time . | . . . . . . . . . . . Parts Recycled . | . . . . . . . . . . . Recycled Matter . | . . . . . . . . . . . Retrieved Matter . | . . . . . . . . . . . Retrieved Components . | . . . . . . . . . . . Parts Scanalyzed . | . . . . . . . . . . . Part Schematics Acquired . | . . . . . . . . . . . Parts Damaged . | . . . . . . . . . . . Bothacking | -11 -10 -10 -10 -9 -8 -8 -8 -8 -7 -7 ------------ Run | Jun Mat Min Exi Min Mat Gar Mat Gar Fac Low Used RIF Installer 4 | . . . . . . 2 . 2 . . Zone Cloak 1 | . . . . . . . . 1 . . Patrol Navigation 1 | . . . . . . . . 1 . . Program Shield 1 | . . . . . . 1 . . . . Robots Hacked 17 | . . . . . . . . 1 13 3 Non-combat 7 | . . . . . . . . . 7 . Combat 10 | . . . . . . . . 1 6 3 Robot Hacks Applied 20 | . . . . . . . . 1 16 3 drop_inventory 1 | . . . . . . . . . 1 . ignore_parts 1 | . . . . . . . . . 1 . map_route 1 | . . . . . . . . . 1 . find_garrison 2 | . . . . . . . . . 2 . wipe_record 1 | . . . . . . . . . 1 . overwrite_iff 6 | . . . . . . . . 1 2 3 streamctrl_low 1 | . . . . . . . . . 1 . formatsys_low 2 | . . . . . . . . . 2 . formatsys_high 5 | . . . . . . . . . 5 . Relay Couplers Released 20 | . . . . . . 5 . 14 1 . Machine Destruction 20 | . . . . . . 5 . 14 1 . Attached 9 | . . . . . . . . 1 8 . Fabnet Peak Effective % . | . . . . . . . . . . . Robots Rewired . | . . . . . . . . . . . Allies Hacked . | . . . . . . . . . . . Hacks Repelled . | . . . . . . . . . . . Allies | -11 -10 -10 -10 -9 -8 -8 -8 -8 -7 -7 -------- Run | Jun Mat Min Exi Min Mat Gar Mat Gar Fac Low Total Allies 14 | . . . . . . . . 1 10 3 Largest Group 4 | . . . . . . . . 1 4 3 Highest-Rated Group 106 | . . . . . . . . 16 106 61 Highest-Rated Ally 94 | . . . . . . . . 16 94 29 Total Orders 1 | . . . . . . . . . 1 . STAY 1 | . . . . . . . . . 1 . Ally Attacks 67 | . . . . . . . . 2 54 11 Total Damage 1259 | . . . . . . . . 31 1041 187 Kills 11 | . . . . . . . . . 10 1 Allies Corrupted . | . . . . . . . . . . . Allies Melted 1 | . . . . . . . . . . 1 Intel | -11 -10 -10 -10 -9 -8 -8 -8 -8 -7 -7 ------- Run | Jun Mat Min Exi Min Mat Gar Mat Gar Fac Low Robot Analysis Total . | . . . . . . . . . . . Derelict Logs Recovered 1 | . . . . 1 . . . . . . Drone Launches . | . . . . . . . . . . . Drone Recoveries . | . . . . . . . . . . . Exploration | -11 -10 -10 -10 -9 -8 -8 -8 -8 -7 -7 ------------- Run | Jun Mat Min Exi Min Mat Gar Mat Gar Fac Low Turns Passed 5994 | . 92 615 555 176 153 826 115 1453 1780 229 Spaces Moved 2672 | 1 50 188 279 55 65 368 45 659 831 131 Core . | . . . . . . . . . . . Treads 790 | . . . 110 55 48 . 5 240 201 131 Legs 416 | 1 50 188 169 . . . . . 8 . Wheels 1466 | . . . . . 17 368 40 419 622 . Hover . | . . . . . . . . . . . Flight . | . . . . . . . . . . . Fastest Speed 120 | 120 120 120 160 240 155 140 140 155 140 160 Average Speed 178 | 120 120 159 197 240 217 162 165 189 173 160 Slowest Speed 400 | 120 120 190 240 240 240 170 240 240 400 160 Overloaded Moves . | . . . . . . . . . . . Propulsion Burnouts . | . . . . . . . . . . . Robots Hopped . | . . . . . . . . . . . Cave-ins Triggered . | . . . . . . . . . . . Exploration Rate (%) 30 | 2 16 45 70 30 8 57 7 61 21 17 Regions Visited 10 Branch Regions 4 Pre-discovered Areas 2 | . . . 1 1 . . . . . . Known Exits Taken 3 | . . . . . 1 . 1 . 1 . Unknown Exits Taken 5 | 1 1 1 1 1 . . . . . . Scrap Searched 3 | . . . . 2 . . . . . 1 Spaces Dug 38 | . . . . . . 15 . 3 7 13 Terrain Destroyed 165 | . . . . . . 51 . 20 29 65 Melee 1 | . . . . . . . . . 1 . Projectile 4 | . . . . . . . . 4 . . AOE 160 | . . . . . . 51 . 16 28 65 Terrain Rammed . | . . . . . . . . . . . Walls Destroyed . | . . . . . . . . . . . Machines Disabled . | . . . . . . . . . . . Actions | -11 -10 -10 -10 -9 -8 -8 -8 -8 -7 -7 --------- Run | Jun Mat Min Exi Min Mat Gar Mat Gar Fac Low Total 3691 | . 60 498 282 70 75 545 77 829 1113 142 Wait 590 | . . 303 . . . 113 17 77 80 . Move 2664 | . 49 187 278 54 65 367 45 658 830 131 Hop . | . . . . . . . . . . . Pick Up 58 | . . 2 1 1 9 9 1 10 25 . Fast Attach 31 | . . . 1 . . 6 2 3 19 . Attach 28 | . . 1 1 . . 5 1 3 17 . Detach 4 | . . . . . . 1 . . 3 . Swap 36 | . . . 1 . 1 5 5 5 17 2 Drop 31 | . . . . . . 3 . 7 21 . Fire 195 | . 11 5 . 15 . 36 5 48 66 9 Melee 2 | . . . . . . . . . 2 . Ram . | . . . . . . . . . . . Kick . | . . . . . . . . . . . Crush 2 | . . . . . . . 1 . 1 . Escape Stasis 50 | . . . . . . . . 18 32 . Rewire . | . . . . . . . . . . . Trap . | . . . . . . . . . . . Miscellaneous . | . . . . . . . . . . . Route ------- -11/Junkyard -10/Materials -10/Mines (discovered 2 exits: [*Mat] / *Exi) -10/Exiles -9/Mines -8/Materials -8/Garrison (discovered 3 exits: *Mat x3) -8/Materials -8/Garrison (discovered 3 exits: *Fac x3) -7/Factory (discovered 4 exits: [Fac] / Sto / *Low x2) -7/Lower Caves History --------- Turn | Location | Event 1 | -11/Junkyard | Discovered new exit (range 0) 1 | -11/Junkyard | Entered Materials 78 | -10/Materials | Discovered new exit (range 13) 93 | -10/Materials | Entered Mines 94 | -10/Mines | Assembled infested the area 99 | -10/Mines | Assisted by a Guerilla fighting off Assembled 305 | -10/Mines | Build established: Mutant 501 | -10/Mines | Core integrity fell below 50% 677 | -10/Mines | Discovered new exit (range 15) 700 | -10/Mines | Deemed a non-threat by the Exiles lab entrance 700 | -10/Mines | Discovered new exit (range 5) 708 | -10/Mines | Entered Exiles 756 | -10/Exiles | Met 8R-AWN 788 | -10/Exiles | Met EX-HEX 843 | -10/Exiles | Met EX-BIN 866 | -10/Exiles | Aligned with FarCom system 868 | -10/Exiles | Given EX-Vault access code 912 | -10/Exiles | Opened EX-Vault 923 | -10/Exiles | Found Gui. Plasma Cannon 964 | -10/Exiles | Warned to stay clear of 0b10 Research branches 1023 | -10/Exiles | Met EX-DEC 1031 | -10/Exiles | Learned location of Zion (-6) 1244 | -10/Exiles | Discovered new exit (range 10) 1263 | -10/Exiles | Left Exiles lab with Gui. Plasma Cannon 1263 | -10/Exiles | Entered Mines 1393 | -9/Mines | Core integrity fell below 20% 1415 | -9/Mines | Discovered new exit (range 10) 1439 | -9/Mines | Entered Materials 1439 | -8/Materials | Evolved 4 slots: Utility x4 1592 | -8/Materials | Identified exit to Garrison 1592 | -8/Materials | Entered Garrison 1628 | -8/Garrison | Triggered checkpoint 1634 | -8/Garrison | Discovered new exit (range 33) 1634 | -8/Garrison | Discovered new exit (range 70) 1634 | -8/Garrison | Discovered new exit (range 48) 1722 | -8/Garrison | Lost 4 parts (1p2u1w) 1751 | -8/Garrison | Installed Relay Interface Framework 1843 | -8/Garrison | Garrison Relay disabled 1968 | -8/Garrison | Triggered checkpoint 1971 | -8/Garrison | Triggered checkpoint 2019 | -8/Garrison | Lost 3 parts (1n2u) 2258 | -8/Garrison | Triggered checkpoint 2384 | -8/Garrison | Build established: Bothacker-Mutant 2391 | -8/Garrison | Expanded RIF knowledge: Program Shield 2418 | -8/Garrison | Entered Materials 2533 | -8/Materials | Identified exit to Garrison 2533 | -8/Materials | Entered Garrison 2731 | -8/Garrison | Expanded RIF knowledge: Zone Cloak 2889 | -8/Garrison | Triggered checkpoint 2957 | -8/Garrison | Discovered new exit (range 8) 3182 | -8/Garrison | Triggered checkpoint 3211 | -8/Garrison | Triggered checkpoint 3241 | -8/Garrison | Destroyed 9 combat bots 3290 | -8/Garrison | Discovered new exit (range 13) 3422 | -8/Garrison | Discovered new exit (range 10) 3432 | -8/Garrison | Triggered checkpoint 3642 | -8/Garrison | Garrison Relay disabled 3642 | -8/Garrison | Garrison Relay disabled 3652 | -8/Garrison | Garrison Relay disabled 3708 | -8/Garrison | Garrison Relay disabled 3874 | -8/Garrison | Triggered checkpoint 3913 | -8/Garrison | Expanded RIF knowledge: Patrol Navigation 3986 | -8/Garrison | Entered Factory 3986 | -7/Factory | Evolved 2 slots: Utility x2 4244 | -7/Factory | Build established: Botlord-Mutant 4515 | -7/Factory | Discovered new exit (range 88) 4845 | -7/Factory | Identified exit to Storage 4845 | -7/Factory | Identified exit to Lower Caves 5255 | -7/Factory | Cargo convoy interrupted 5299 | -7/Factory | Core integrity fell below 50% 5310 | -7/Factory | Core integrity fell below 20% 5339 | -7/Factory | Lost 15 parts (2p2n7u4w) 5341 | -7/Factory | Found Prototype Launcher 5341 | -7/Factory | Identified Mni. Smartbomb Launcher 5431 | -7/Factory | Found Mni. Smartbomb Launcher 5438 | -7/Factory | Found Mni. Smartbomb Launcher 5456 | -7/Factory | Found Mni. Smartbomb Launcher 5462 | -7/Factory | Found Mni. Smartbomb Launcher 5766 | -7/Factory | Entered Lower Caves 5995 | -7/Lower Caves | Destroyed self with Mini Smartbomb Launcher Last Messages --------------- 05773_ Jacked G-47 Trooper... >>overwrite_iff Rewriting IFF filter. 05774_ Acquired 5 matter. 05776_ G-47 Trooper destroyed. 05778_ G-50 Soldier overheating. 05780_ G-50 Soldier critical meltdown. 05782_ Destroyed Lgt. Nuclear Core. 05782_ Imp. Heat Sink melted. 05782_ G-47 Trooper destroyed. 05784_ Network quickbooting G-47 Trooper, ETC: 10. 05785_ G-47 Trooper destroyed. 05790_ Acquired 19 matter. 05790_ Acquired 20 matter. 05791_ Acquired 18 matter. 05791_ Acquired 3 matter. 05792_ The unstable cave ceiling collapses. 05822_ Searching scrap... 05822_ Found Slug Cannon. 05822_ Found 25 Matter. Map ----- +----------------------------------------------------+ | ?????????????????????????????????????????????????? | | ?????????????????????????????????????????????????? | | ?????????????????????????????????????????????????? | | ?????????????????????????????????????????????????? | | ?????????????????????????????????????????????????? | | ?????????????????????????????????????????????????? | | ?????????????????????????????????????????????????? | | ?????????????????????????????????????????????????? | | ?????????????????????????????????????????????????? | | ???????????????????????????????????????????????### | | ???????????????????????????????????????????????# | | ???????????????????????????????????????????????# " | | ???????????????????####????????????????????????# " | | ??????????????###### ##??????????????????????## " | | ?????????????## ##?####???????????????## " | | ?????????????# ### #???????????????# | | ?????????????# #????????????#### | | ?????????????###### ##???????????## | | ??????????????????### #?????????#### | | ????????????????????## #?????????# | | ?????????????????????# ##????????## | | ?????????????????????# #?????????# ## | | ?????????????????????## ##??###???# ## | | ??????????????????????## #### ##??# # ## | | ???????????????????????# ## #??#?# ### | | ???????????????????????##@ #????# ### | | ????????????####??????# S ###### #?# | | ????????????# ## ### #?# | | ?????????# #### #?## | | ???????????????#!% # #?# #########??# | | ??????????????? Y l #?## ##??????????# | | ????????????? * b"# #??# #???????????## | | ???????????? ? "# ##??# #????????????## | | ????????????? ? l?# ## ##??# ?????????????# | | ??????????????? ??# ## #??## ????????????? | | ??????????????"?????# # #???## ###???????????? | | ?????????????######## # ##????# #?????????????? | | ???????????# #?????# #?????????????? | | ????????????????# ## #?????# #?????????????? | | ????????????????# ## ##????# #?????????????? | | ????????????????# ##???# ?????????????? | | ????????????????# #???####?????????????? | | ????????????????##### #????????????????????? | | ?????????????????## ##???????????????????? | | ?????????????????# #???????????????????? | | ?????????????????#### ######???????????????????? | | ????????????????????## #????????????????????????? | | ?????????????????????# #???????????????????????? | | ?????????????????????# #??????????????????????? | | ?????????????????????### #??????????????????????? | +----------------------------------------------------+ Best States ------------- Heat Dissipation 104 Energy Generation 23 Energy Capacity 350 Matter Stores 300 Matter Capacity 300 Sight Range 16 Robot Scan Range 15 Terrain Scan Density 10 Armor Coverage 450 Propulsion Shielding 66 Weapon Cycling 20 Evasion (%) 55 Recoil Reduction 2 Relay Coupler Types 4 Relay Coupler Value 79 Item Schematics ----------------- None Robot Schematics ------------------ None Fabricated ------------ Nothing Alien Tech Used ----------------- None Achievements -------------- None Challenges ------------ None Game ------ Seed MinesnifferBackupCalibrator Manual? 0 Play Time 00:45:27 Cumulative 429.2 hours Start 2023.04.30 @ 21:52:49 End 2023.04.30 @ 22:39:15 Sessions 1 Manual Loads 0 Difficulty Rogue Special Mode None Game No. 468 Rogue 468 Adventurer 0 Explorer 0 Win Type - Total 12 Types 8/0/3/1/0/0/0/0/0 Lore% 82 Gallery% 90 Achievement% 80 Wizard Run 0 Options --------- ASCII 0 Keyboard 0 Movement Mouse Keybinds 0 Fullscreen 1 Font 18/Terminus Map View 76x50 Tactical HUD 1 Map Filters NONE Filters NONE Steam 1 RUN: 6784e2cb-cf33-4b7a-874a-e02a797a3fba